bitfinex-derivatives/quotes_ETHF0:USTF0_20250804
["timestamp","ask_amount","ask_price","bid_price","bid_amount"]
[1754270763066,6.01976409,3546.8,3546.7,22.6808]
[1754270763266,6.1826,3546.8,3546.7,22.6808]
[1754270763457,2.0913,3546.7,3546.3,4.0842]
[1754270763656,2.0913,3546.7,3545.5,1.41005]
[1754270763657,3.2078,3546.4,3545.5,3.2078]
[1754270763863,1.8929929,3546.3,3546.0,0.56395]
[1754270764063,1.01078769,3546.8,3546.2,1.72502]
[1754270764363,0.72066359,3546.7,3546.6,2.9738]
[1754270764961,4.2078,3547.0,3546.9,2.60131]
[1754270764962,1.0,3547.0,3546.9,2.60131]
[1754270765164,1.01078769,3547.8,3547.5,3.53751]
[1754270765363,0.919,3547.9,3547.8,2.0375]
[1754270765562,2.9748,3547.9,3547.8,2.0375]
[1754270765763,0.56364,3548.0,3547.8,19.747]
[1754270765764,2.9748,3548.0,3547.8,19.747]
[1754270765964,2.0558,3548.0,3547.8,20.9081]
[1754270766164,3.2078,3548.2,3547.8,20.6234]
[1754270766365,3.2078,3548.2,3547.9,1.1611]
[1754270766559,1.1723,3548.1,3547.9,0.56365]
[1754270766763,2.9748,3548.0,3547.8,19.747]
[1754270766963,3.53844,3548.0,3547.8,19.747]
[1754270767160,3.2078,3548.2,3547.9,19.752]
[1754270767161,0.919,3548.1,3547.9,19.752]
[1754270767367,2.9748,3548.0,3547.9,20.31565]
[1754270767563,2.9748,3548.0,3547.9,22.35315]
[1754270767765,2.9748,3548.0,3547.9,20.9131]
[1754270767972,2.9748,3548.0,3547.9,19.752]
[1754270768371,2.9748,3548.0,3547.9,20.9131]
[1754270768579,2.9748,3548.0,3547.9,21.7895]
[1754270768781,2.9748,3548.0,3547.9,20.9131]
[1754270769178,2.9748,3548.0,3547.9,24.1209]
[1754270769478,2.9748,3548.0,3547.9,24.9973]
[1754270769674,2.9748,3548.0,3547.9,21.7895]
[1754270770081,1.8025,3548.6,3548.0,2.9738]
[1754270770276,0.919,3548.6,3548.5,0.56355]
[1754270770478,0.919,3548.6,3548.5,23.28335]
[1754270770883,3.53835,3548.6,3548.5,19.746]
[1754270771177,2.9748,3548.6,3548.5,21.7835]
[1754270771378,1.8025,3548.6,3548.5,22.7198]
[1754270771579,1.8025,3548.6,3548.5,21.7835]
[1754270771782,2.9748,3548.6,3548.5,21.7835]
[1754270772080,2.9748,3548.6,3548.5,20.9071]
[1754270772478,2.9748,3548.6,3548.2,5.8089]
[1754270772673,0.56354,3548.6,3548.3,19.741]
[1754270772980,2.9748,3548.4,3548.3,19.741]
[1754270773179,2.9748,3548.4,3548.3,21.7785]
[1754270773982,0.919,3548.4,3548.3,22.726]
[1754270774678,0.56355,3548.5,3548.3,19.731]
[1754270774880,3.1348,3548.4,3548.3,19.731]
[1754270775978,3.1348,3548.4,3547.9,2.1083]
[1754270776186,3.1348,3548.1,3548.0,20.28463]
[1754270776386,3.1348,3548.1,3548.0,21.51633]
[1754270776774,3.1348,3548.1,3548.0,22.39293]
[1754270776982,3.1348,3548.1,3548.0,23.34043]
[1754270777285,3.1348,3548.1,3548.0,22.39293]
[1754270777486,3.1348,3548.1,3548.0,21.8283]
[1754270778184,3.2078,3548.6,3547.6,3.2078]
[1754270778488,3.1348,3547.7,3547.6,3.2078]
[1754270778983,1.8782,3547.7,3547.6,5.8798]
[1754270779181,0.9115,3548.1,3548.0,3.0558]
[1754270779381,0.9667,3548.3,3548.1,0.56362]
[1754270779687,2.2233,3548.3,3548.2,2.1083]
[1754270779888,0.56362,3548.1,3547.8,19.735]
[1754270780182,2.2233,3547.8,3547.7,20.9667]
[1754270780384,0.9667,3547.4,3547.3,2.1083]
[1754270780589,3.1348,3547.4,3547.3,21.8463]
[1754270780989,1.8782,3547.4,3547.3,22.7938]
[1754270781190,0.9115,3547.4,3547.3,22.7938]
[1754270781884,2.1681,3548.4,3548.1,2.1083]
[1754270782188,2.1681,3548.4,3548.0,1.51113]
[1754270782189,2.2233,3548.3,3548.0,19.738]
[1754270782384,1.2566,3548.4,3548.3,1.2317]
[1754270782595,3.2078,3548.6,3548.4,0.56357]
[1754270782784,0.9115,3548.5,3548.4,3.61937]
[1754270783086,5.4311,3548.6,3548.4,3.61937]
[1754270783087,3.2078,3548.6,3548.5,3.0558]
[1754270783481,4.1193,3548.6,3548.5,3.0558]
[1754270783687,1.8782,3548.6,3548.5,3.0558]
[1754270783881,3.77132,3548.7,3548.4,19.737]
[1754270784083,3.77132,3548.7,3548.4,19.733]
[1754270784483,0.56355,3548.6,3548.4,19.733]
[1754270784688,3.1348,3548.5,3548.4,19.733]
[1754270784884,0.9667,3548.3,3547.9,1.2317]
[1754270785194,0.9667,3548.3,3548.1,0.5636]
[1754270785396,0.56355,3548.6,3548.2,0.56359]
[1754270785990,0.56356,3548.5,3548.1,0.56362]
[1754270786190,3.1348,3548.2,3548.1,0.56362]
[1754270787587,3.1348,3548.2,3548.1,1.79532]
[1754270787798,3.1348,3548.2,3548.1,1.2317]
[1754270787988,0.9667,3548.2,3548.0,20.28863]
[1754270788297,3.1348,3548.1,3548.0,19.723]
[1754270788488,1.8782,3547.9,3547.8,19.714]
[1754270788685,3.1348,3547.9,3547.4,3.2078]
[1754270788986,2.1681,3547.3,3547.1,1.2317]
[1754270789295,3.1348,3547.3,3547.2,19.715]
[1754270789690,3.1348,3547.3,3547.2,2.1083]
[1754270789890,3.1348,3547.2,3547.1,0.56377]
[1754270790095,3.1348,3547.2,3547.1,21.50847]
[1754270790290,0.56372,3547.5,3547.0,0.56378]
[1754270790494,3.2078,3547.6,3546.8,5.3161]
[1754270790495,0.56376,3547.2,3546.8,5.3161]
[1754270790798,0.56376,3547.2,3546.9,19.711]
[1754270790799,3.1348,3547.0,3546.9,19.711]
[1754270791998,4.1193,3548.4,3547.1,3.0558]
[1754270792191,4.1193,3548.4,3547.7,1.2317]
[1754270792192,3.2078,3547.9,3547.7,1.2317]
[1754270792392,0.56368,3547.8,3547.3,1.2317]
[1754270792593,1.2566,3547.6,3547.3,21.62644]
[1754270792892,1.2566,3547.6,3547.1,3.2078]
[1754270792893,0.9115,3547.3,3546.9,1.2317]
[1754270793096,3.2078,3547.4,3546.9,1.2317]
[1754270793097,3.2078,3547.4,3546.9,0.56381]
[1754270793300,3.1348,3547.0,3546.9,0.56381]
[1754270793491,3.1348,3547.0,3546.9,2.67211]
[1754270793699,3.1348,3547.0,3546.6,24.0013]
[1754270793700,1.8782,3547.3,3547.2,2.1083]
[1754270793890,3.2078,3547.8,3547.5,0.56371]
[1754270794089,1.51618154,3549.0,3547.7,1.2317]
[1754270794090,3.1348,3548.2,3547.7,1.2317]
[1754270794290,3.1348,3548.2,3547.5,29.12156482]
[1754270794291,3.1348,3548.2,3548.0,0.56363]
[1754270794494,3.1348,3548.2,3548.1,2.1083]
[1754270794791,3.1348,3548.2,3547.5,29.12156482]
[1754270794792,3.1348,3548.2,3547.5,9.26956482]
[1754270794997,1.01078769,3548.9,3547.6,0.5637]
[1754270794998,3.2078,3547.9,3547.6,0.5637]
[1754270795401,3.1348,3547.7,3547.6,0.5637]
[1754270796104,3.1348,3547.7,3547.6,2.672]
[1754270796603,1.8782,3547.7,3547.6,3.6195]
[1754270796800,3.77139,3548.3,3547.9,0.56365]
[1754270797009,3.1348,3548.2,3547.9,0.56365]
[1754270797213,4.1745,3548.3,3548.2,1.2317]
[1754270797610,6.3426,3548.3,3548.2,1.2317]
[1754270797811,3.2078,3548.3,3548.2,1.2317]
[1754270798107,4.1193,3548.3,3548.2,2.1083]
[1754270798312,3.2078,3548.3,3548.2,3.0558]
[1754270799213,5.086,3548.3,3548.2,3.0558]
[1754270799813,5.086,3548.3,3548.1,0.56361]
[1754270799814,6.3426,3548.3,3548.1,0.56361]
[1754270800012,3.1348,3548.2,3547.9,20.41164]
[1754270800211,3.1348,3548.2,3547.2,9.45717709]
[1754270800212,3.1348,3548.2,3547.5,0.9475]
[1754270800408,3.2078,3548.3,3547.9,0.56365]
[1754270800409,3.77139,3548.3,3547.9,0.56365]
[1754270800614,3.77139,3548.3,3547.7,0.56367]
[1754270800615,3.1348,3547.9,3547.7,0.56367]
[1754270800914,3.1348,3547.8,3547.6,19.843]
[1754270801116,0.56365,3548.0,3547.5,3.21773227]
[1754270801304,3.77139,3548.3,3547.8,0.56366]
[1754270801708,3.1348,3548.2,3547.8,1.79536]
[1754270801911,0.56367,3547.8,3547.5,1.98603227]
[1754270802122,1.2566,3547.6,3547.4,21.82503227]
[1754270802308,1.2566,3547.6,3547.5,2.67201]
[1754270802508,4.4644,3548.2,3547.8,1.79537]
[1754270802718,3.2078,3548.2,3547.8,2.67197]
[1754270802916,0.56362,3548.1,3547.8,2.67197]
[1754270803214,0.56364,3548.0,3547.6,0.56369]
[1754270803416,0.9115,3547.8,3547.7,0.56367]
[1754270803714,4.1745,3548.2,3547.7,2.1388]
[1754270803913,3.2078,3548.2,3547.6,2.1158]
[1754270804212,4.4117,3548.2,3547.5,6.06176482]
[1754270804511,3.2078,3548.2,3548.1,3.0165]
[1754270804912,6.2075,3548.2,3547.8,2.1158]
[1754270805106,6.2075,3548.2,3547.6,0.9007]
[1754270805107,2.9997,3548.1,3547.6,2.88673227]
[1754270805318,3.2078,3548.2,3548.1,2.1158]
[1754270805514,3.2078,3548.2,3548.1,3.0165]
[1754270805914,4.1367,3548.2,3548.1,1.2381]
[1754270806212,3.2078,3548.2,3548.1,3.0165]
[1754270806918,2.9997,3548.4,3548.2,3.58009]
[1754270807115,2.9997,3548.4,3548.3,2.1158]
[1754270807616,2.9997,3548.4,3547.8,5.19383227]
[1754270807617,3.2078,3548.7,3548.5,3.58004]
[1754270807820,4.1367,3548.7,3548.6,3.0165]
[1754270808207,3.2078,3548.7,3548.6,3.0165]
[1754270808916,3.2078,3549.3,3548.7,0.56352]
[1754270809109,3.2078,3549.3,3548.7,3.0165]
[1754270809418,3.2078,3549.3,3548.3,3.2078]
[1754270809419,2.6343,3548.9,3548.8,1.2381]
[1754270809820,3.7713,3548.9,3548.6,0.56352]
[1754270810115,1.7958,3548.7,3548.6,2.67932]
[1754270810818,1.7958,3548.7,3548.6,3.58002]
[1754270811014,0.9289,3548.7,3548.6,3.58002]
[1754270811214,0.56348,3549.0,3548.7,0.56351]
[1754270811417,0.9289,3548.8,3548.7,1.46421]
[1754270811622,0.9289,3548.8,3548.7,0.9007]
[1754270811813,2.9997,3548.8,3548.7,0.9007]
[1754270812013,2.9997,3548.8,3548.7,3.0165]
[1754270812217,1.7958,3548.8,3548.7,3.0165]
[1754270812423,0.9289,3548.8,3548.7,3.0165]
[1754270813820,0.9289,3548.8,3548.7,5.0479]
[1754270814123,1.56,3548.8,3548.7,5.0479]
[1754270814524,2.1828,3548.8,3548.7,5.0479]
[1754270814819,3.8255,3548.8,3548.7,5.0479]
[1754270815019,5.0294,3548.8,3548.7,5.0479]
[1754270816420,2.9586,3548.8,3548.7,5.0479]
[1754270816926,3.8255,3548.8,3548.7,5.0479]
[1754270817132,5.0294,3548.8,3548.7,5.0479]
[1754270817321,0.56347,3549.1,3548.8,0.56351]
[1754270817519,2.8966,3549.0,3548.9,5.0479]
[1754270818226,1.49235,3549.2,3549.1,5.0479]
[1754270818227,2.12345,3549.2,3549.1,5.0479]
[1754270818418,2.9586,3549.2,3549.1,3.8098]
[1754270818622,5.0294,3549.2,3549.1,3.8098]
[1754270818928,5.59284,3549.2,3549.1,3.8098]
[1754270819130,5.59284,3549.2,3549.1,3.2695]
[1754270819333,5.59284,3549.2,3549.1,0.8415]
[1754270820324,4.66398,3549.0,3548.9,2.0314]
[1754270820536,5.59288,3549.0,3548.9,2.0314]
[1754270820835,2.0297,3548.5,3548.4,3.47267]
[1754270821018,2.3358,3548.7,3548.6,5.61144]
[1754270821217,2.3358,3548.7,3548.3,1.40896]
[1754270821218,3.3867,3548.9,3548.8,2.59491]
[1754270821530,2.1828,3548.9,3548.8,5.61141]
[1754270821736,2.1828,3548.9,3548.8,5.0479]
[1754270821923,5.0294,3548.9,3548.8,5.0479]
[1754270822918,2.0297,3548.6,3548.5,4.1472]
[1754270823117,5.0294,3548.6,3548.5,4.71074]
[1754270823527,5.59294,3548.6,3548.5,2.0676]
[1754270823723,5.0294,3548.3,3548.2,8.8193]
[1754270824132,5.59299,3548.3,3547.9,4.12483227]
[1754270824331,2.0297,3548.2,3548.1,2.0796]
[1754270824526,2.0297,3548.2,3548.1,3.2695]
[1754270824725,2.0297,3548.2,3548.1,4.1472]
[1754270824926,5.0294,3548.2,3548.1,4.1472]
[1754270825824,5.0294,3548.2,3548.1,3.2695]
[1754270826225,1.2539,3548.5,3548.4,2.9321]
[1754270826421,5.0294,3548.5,3547.9,1.98603227]
[1754270826729,2.5934,3547.6,3547.5,2.50804843]
[1754270826928,5.0294,3547.4,3547.3,4.1472]
[1754270827121,5.59318,3547.1,3547.0,1.4549]
[1754270827433,2.9997,3546.9,3546.8,2.1158]
[1754270827932,0.56374,3547.3,3546.6,41.4527]
[1754270828126,0.56374,3547.3,3546.8,1.2381]
[1754270828127,1.7958,3546.9,3546.8,1.2381]
[1754270828433,1.7958,3546.9,3546.2,1.40979]
[1754270828434,2.1328,3546.9,3546.4,2.54991227]
[1754270828729,0.5638,3547.0,3546.5,1.2381]
[1754270828929,2.9997,3546.6,3546.5,1.2381]
[1754270829232,2.9997,3546.6,3546.1,3.2078]
[1754270829433,0.8669,3546.4,3546.1,4.4459]
[1754270829728,2.9997,3545.9,3545.8,19.793]
[1754270829920,3.2078,3546.3,3545.8,19.793]
[1754270829921,0.9289,3546.2,3545.8,0.56398]
[1754270830126,1.7958,3546.2,3546.0,3.0165]
[1754270830427,1.7958,3546.2,3546.1,2.1158]
[1754270830630,1.7958,3546.2,3546.1,1.2381]
[1754270830631,2.9997,3546.2,3546.1,1.2381]
[1754270831230,0.56394,3546.1,3545.8,0.8777]
[1754270831532,0.56397,3545.9,3545.6,2.1158]
[1754270831832,3.2078,3546.3,3545.6,2.1158]
[1754270831833,2.9997,3545.7,3545.6,2.1158]
[1754270832928,2.9997,3545.6,3545.5,3.2078]
[1754270833128,3.2078,3545.9,3545.1,0.56409]
[1754270833434,1.2039,3545.7,3545.0,3.2078]
[1754270833628,2.9997,3545.6,3545.0,3.2078]
[1754270833824,3.0893,3545.5,3545.0,3.2078]
[1754270834126,1.2218,3545.1,3544.7,2.1158]
[1754270834326,1.2218,3545.1,3544.5,3.77198]
[1754270834327,0.9553,3544.6,3544.5,3.2078]
[1754270834523,3.65348,3544.6,3543.9,20.81381569]
[1754270834725,2.1771,3544.6,3544.3,0.56421]
[1754270834929,2.134,3544.4,3544.2,0.56423]
[1754270835126,1.8675,3544.3,3543.9,1.01581569]
[1754270835327,3.0893,3544.1,3543.9,1.01581569]
[1754270835533,3.0893,3544.0,3543.9,1.01581569]
[1754270837232,1.41038,3544.8,3543.9,1.01581569]
[1754270837233,1.8675,3544.6,3544.5,0.56419]
[1754270837425,1.2218,3544.8,3544.7,0.56416]
[1754270837630,0.9122,3544.9,3544.1,6.06176482]
[1754270837631,3.0893,3544.9,3544.1,0.961]
[1754270837924,3.0893,3544.9,3544.0,2.1284]
[1754270837925,1.2218,3544.8,3544.5,0.56419]
[1754270838124,1.2218,3544.7,3544.5,0.56419]
[1754270838327,1.8675,3544.6,3544.5,2.69259]
[1754270839028,3.0893,3544.6,3544.5,2.69259]
[1754270839230,3.0893,3544.6,3544.5,1.77439]
[1754270839434,3.0893,3544.6,3544.5,0.56419]
[1754270839930,3.0893,3544.6,3544.4,0.5642]
[1754270840132,3.0893,3544.6,3544.2,2.1284]
[1754270840133,3.0893,3544.4,3544.2,0.56423]
[1754270840330,3.0893,3544.3,3544.2,0.56423]
[1754270840831,3.0893,3544.3,3543.9,4.78789569]
[1754270841031,3.2078,3544.6,3543.9,1.01581569]
[1754270841231,3.77198,3544.6,3544.0,0.56427]
[1754270841828,3.0893,3544.3,3543.9,1.58009569]
[1754270842025,0.56421,3544.4,3543.9,1.58009569]
[1754270842227,3.0893,3544.2,3544.1,0.56425]
[1754270842733,1.8675,3544.5,3544.4,0.56419]
[1754270842938,1.8675,3544.5,3544.1,1.2102]
[1754270842939,3.0893,3544.4,3544.3,0.56422]
[1754270843234,3.0893,3544.4,3544.3,1.77442]
[1754270843633,3.0893,3544.4,3543.9,5.18461569]
[1754270843634,0.56425,3544.2,3543.9,1.01581569]
[1754270843836,3.0893,3544.0,3543.9,1.01581569]
[1754270844839,0.9553,3544.8,3544.6,0.56416]
[1754270845038,3.0893,3544.6,3544.4,1.2102]
[1754270845230,3.0893,3544.5,3544.4,1.2102]
[1754270845537,2.134,3544.5,3544.4,0.9182]
[1754270845738,2.134,3544.4,3544.2,2.1284]
[1754270845934,3.2078,3545.0,3544.2,2.1284]
[1754270845935,3.2078,3545.0,3544.9,2.1284]
[1754270846134,4.1631,3545.0,3544.9,2.1284]
[1754270846338,4.1631,3545.0,3544.9,3.0894]
[1754270846640,3.0893,3544.9,3544.7,2.69255]
[1754270846840,1.8675,3544.8,3544.7,2.69255]
[1754270847336,3.0893,3544.8,3544.7,2.69255]
[1754270847837,3.0893,3545.2,3545.0,0.5641]
[1754270848037,3.2078,3545.4,3545.2,2.69247]
[1754270848238,1.51931,3545.6,3545.5,2.1284]
[1754270848539,3.0893,3545.7,3545.1,1.77429]
[1754270848735,0.9553,3545.4,3545.1,0.56409]
[1754270848931,3.77184,3545.5,3545.4,2.1284]
[1754270848932,1.8675,3545.5,3545.4,2.1284]
[1754270849133,1.8675,3545.5,3545.4,3.0894]
[1754270849338,1.8675,3545.5,3545.3,0.56405]
[1754270849339,3.65336,3545.4,3545.1,0.56409]
[1754270849538,3.0893,3545.1,3545.0,0.5641]
[1754270850431,4.1631,3545.7,3545.1,0.961]
[1754270850636,0.9553,3545.6,3545.5,1.2102]
[1754270850837,3.0893,3545.6,3545.5,2.1284]
[1754270851236,0.56401,3545.6,3545.2,0.9182]
[1754270851436,0.56405,3545.4,3545.2,0.56407]
[1754270851635,3.0893,3545.3,3545.2,0.56407]
[1754270852041,3.0893,3545.2,3545.1,1.77429]
[1754270852544,3.0893,3545.2,3545.1,2.69249]
[1754270852733,0.9553,3545.2,3545.1,3.65349]
[1754270852939,3.0893,3545.5,3545.4,2.69245]
[1754270853140,1.8675,3545.5,3545.4,2.69245]
[1754270853342,0.56398,3545.8,3545.6,0.961]
[1754270853537,0.56398,3545.8,3545.5,0.56401]
[1754270853737,0.56397,3545.9,3545.7,0.56399]
[1754270854043,3.77173,3546.1,3545.8,1.2102]
[1754270854245,2.1771,3545.9,3545.8,2.1284]
[1754270854545,3.0893,3545.9,3545.8,1.2102]
[1754270854744,0.56398,3545.8,3545.5,0.9182]
[1754270854950,3.0893,3545.6,3545.2,0.56408]
[1754270855150,0.56405,3545.5,3545.2,1.77428]
[1754270855444,3.2078,3545.7,3545.0,4.126]
[1754270855445,0.9553,3545.4,3545.3,2.69245]
[1754270855651,0.9553,3545.4,3545.3,3.65345]
[1754270856154,3.2078,3545.7,3545.0,3.2078]
[1754270856155,3.0893,3545.3,3545.2,0.56407]
[1754270856847,3.0893,3545.6,3544.8,0.9182]
[1754270857150,3.2078,3545.7,3544.8,0.56413]
[1754270857151,2.134,3545.0,3544.8,0.56413]
[1754270857344,3.0893,3545.1,3544.8,0.56413]
[1754270857647,0.56408,3545.2,3544.9,0.56411]
[1754270857848,3.0893,3544.9,3544.7,0.56415]
[1754270858450,3.0893,3544.9,3544.4,4.1688]
[1754270858451,0.56414,3544.8,3544.4,5.379]
[1754270858642,3.0893,3544.7,3544.5,1.2102]
[1754270858843,3.0893,3544.6,3544.5,1.77439]
[1754270859044,3.0893,3544.6,3544.5,1.2102]
[1754270860051,0.9122,3544.8,3544.6,0.56417]
[1754270860250,1.8675,3544.7,3544.6,3.0894]
[1754270860450,3.0893,3544.7,3544.6,3.0894]
[1754270860751,0.56411,3545.0,3544.8,0.56413]
[1754270860951,0.73467117,3545.0,3544.8,1.52513]
[1754270861250,1.47629,3545.2,3544.8,1.52513]
[1754270861251,4.12,3545.7,3545.5,1.52503]
[1754270861444,5.0753,3545.7,3545.6,3.0894]
[1754270861646,5.97529845,3545.7,3545.6,3.0894]
[1754270862045,5.81023568,3545.7,3545.6,3.0894]
[1754270862445,2.60243568,3545.7,3545.6,3.0894]
[1754270862848,3.82423568,3545.7,3545.6,3.0894]
[1754270864152,0.73493568,3545.7,3545.6,2.9831]
[1754270864753,3.69493568,3545.7,3545.6,2.9831]
[1754270864948,1.92883568,3545.7,3545.3,0.56406]
[1754270865149,3.2078,3545.8,3545.3,0.56406]
[1754270865150,3.52405,3545.4,3545.3,1.1925]
[1754270865647,0.56405,3545.4,3545.2,0.8296]
[1754270865851,0.56405,3545.4,3544.7,3.2078]
[1754270865852,2.96,3545.0,3544.8,0.56413]
[1754270866154,3.77185,3545.4,3545.1,1.1925]
[1754270866354,0.56408,3545.3,3545.1,2.0221]
[1754270866554,2.96,3545.2,3545.1,2.0221]
[1754270866748,0.56409,3545.2,3544.9,0.56412]
[1754270866948,2.96,3545.1,3545.0,1.1925]
[1754270867355,2.96,3545.1,3545.0,2.0221]
[1754270867855,2.96,3545.1,3545.0,1.1925]
[1754270868151,2.0641,3545.1,3544.9,2.0221]
[1754270868355,2.96,3545.1,3544.8,2.9939]
[1754270868655,1.4978,3545.0,3544.9,4.9627]
[1754270868956,2.0784,3545.0,3544.9,4.9627]
[1754270869157,2.96,3544.9,3544.8,1.39374]
[1754270869357,4.9362,3544.9,3544.8,2.7984]
[1754270869557,4.9362,3544.9,3544.8,3.9909]
[1754270869857,4.9362,3544.9,3544.8,4.55504]
[1754270870457,5.50033,3544.9,3544.5,0.56418]
[1754270870660,0.7937,3544.8,3544.7,3.9909]
[1754270870857,0.56412,3545.0,3544.7,1.9688]
[1754270871056,4.0403,3545.0,3544.9,3.9909]
[1754270871755,5.50027,3545.3,3545.2,3.9909]
[1754270871955,6.23628744,3545.3,3545.2,3.9909]
[1754270872154,2.54029,3545.1,3545.0,0.7753]
[1754270872357,6.23630744,3545.1,3545.0,0.7753]
[1754270872656,6.23630744,3545.1,3544.8,2.0221]
[1754270872657,5.50033,3544.9,3544.8,3.4105]
[1754270872858,5.50033,3544.9,3544.8,3.9909]
[1754270874255,5.50033,3544.9,3544.8,0.7753]
[1754270875856,0.56417,3544.6,3544.5,2.386]
[1754270876156,0.56417,3544.6,3544.5,4.9627]
[1754270876157,5.50037,3544.6,3544.5,4.9627]
[1754270876358,4.9362,3544.6,3544.5,4.9627]
[1754270876553,2.9486,3544.6,3544.5,4.9627]
[1754270876750,0.56415,3544.8,3544.6,0.56417]
[1754270876954,2.0527,3544.8,3544.7,3.9909]
[1754270877248,4.0403,3544.8,3544.7,3.9909]
[1754270877456,4.9362,3544.8,3544.7,3.9909]
[1754270879158,4.9362,3544.8,3544.7,0.7753]
[1754270879664,4.9362,3544.5,3544.4,3.9909]
[1754270880758,4.9362,3544.5,3544.4,4.9627]
[1754270881460,4.9362,3544.5,3544.3,3.77201]
[1754270881461,5.50039,3544.5,3544.3,3.2078]
[1754270881656,3.2078,3545.0,3544.2,3.1613]
[1754270881657,5.50042,3544.3,3544.2,3.1613]
[1754270881854,4.9362,3544.3,3544.2,3.9909]
[1754270882062,4.066,3544.0,3543.9,4.22361569]
[1754270882259,4.9362,3544.0,3543.9,7.02201569]
[1754270882562,4.9362,3544.0,3543.9,1.01581569]
[1754270883366,4.9362,3544.0,3543.9,3.59671569]
[1754270883566,4.9362,3544.0,3543.9,4.17711569]
[1754270884264,4.9362,3544.0,3543.9,2.98461569]
[1754270884667,4.9362,3544.0,3543.9,2.40421569]
[1754270887767,4.9362,3544.0,3543.9,1.01581569]
[1754270890567,4.9362,3544.0,3543.9,3.59671569]
[1754270891566,4.9362,3544.0,3543.9,2.40421569]
[1754270892271,3.77207,3544.1,3544.0,4.9627]
[1754270892272,3.2078,3544.1,3544.0,4.9627]
[1754270892467,1.46012,3544.4,3544.3,1.9688]
[1754270892770,2.6426,3544.5,3544.4,4.9627]
[1754270892964,5.5004,3544.5,3544.4,3.9909]
[1754270893874,2.50834,3544.2,3544.1,3.7996]
[1754270894171,5.42004,3544.2,3544.1,4.9802]
[1754270894469,5.42007,3544.0,3543.9,1.01581569]
[1754270894862,0.56427,3544.0,3543.9,5.91051569]
[1754270895268,0.56419,3544.5,3544.1,1.933]
[1754270895576,4.106,3544.6,3544.5,4.8947]
[1754270895577,0.56418,3544.6,3544.5,4.8947]
[1754270896175,2.0845,3544.6,3544.5,4.8947]
[1754270896774,3.7279,3544.6,3544.5,4.8947]
[1754270896975,4.8558,3544.6,3544.5,4.8947]
[1754270897274,8.0636,3544.6,3544.5,4.0084]
[1754270897575,8.0636,3544.6,3544.5,0.7572]
[1754270898075,8.0636,3544.6,3544.5,4.0084]
[1754270898270,8.0636,3544.6,3544.5,4.8947]
[1754270900377,8.0636,3544.6,3544.5,3.1136]
[1754270900574,8.0636,3544.6,3544.5,4.0084]
[1754270900765,8.0636,3544.6,3544.5,4.8947]
[1754270901370,8.0636,3544.6,3544.5,5.45889]
[1754270902678,8.0636,3544.6,3544.5,3.1136]
[1754270902975,2.50833,3544.3,3544.1,0.56424]
[1754270903176,4.8558,3544.2,3544.1,4.57264]
[1754270903470,4.8558,3544.2,3544.1,5.45894]
[1754270903674,1.9441,3544.5,3544.4,1.933]
[1754270903874,4.8558,3544.5,3544.4,4.8947]
[1754270904464,3.2078,3545.0,3544.5,0.56419]
[1754270904679,2.64866,3544.8,3544.7,4.8947]
[1754270904874,4.29206,3544.8,3544.7,4.8947]
[1754270905079,5.41996,3544.8,3544.7,4.8947]
[1754270905674,5.41996,3544.8,3544.7,4.0084]
[1754270908074,5.41996,3544.8,3544.7,4.8947]
[1754270909775,4.8558,3544.8,3544.7,4.8947]
[1754270910177,2.0845,3544.8,3544.7,4.8947]
[1754270910378,2.0261,3545.1,3544.9,5.45881]
[1754270910379,1.1989,3545.0,3544.9,5.45881]
[1754270910572,1.1989,3545.0,3544.9,4.8947]
[1754270910875,3.2078,3545.1,3544.6,1.1806]
[1754270911071,4.8558,3544.7,3544.6,0.7572]
[1754270911275,4.8558,3544.7,3544.4,0.56419]
[1754270911276,1.3715,3544.2,3544.1,6.31285]
[1754270911473,2.8297,3544.2,3544.1,7.78045]
[1754270911678,4.8558,3544.2,3544.1,8.66675]
[1754270911885,2.8297,3544.2,3544.1,8.66675]
[1754270912085,2.0845,3544.2,3544.1,8.66675]
[1754270912280,3.2078,3544.7,3544.6,5.45887]
[1754270912978,3.9576,3545.2,3545.1,2.49709]
[1754270913179,4.8558,3545.2,3545.1,5.45879]
[1754270913476,1.1989,3545.2,3545.1,5.45879]
[1754270913687,1.5245,3545.7,3545.6,2.49702]
[1754270913872,1.5245,3545.7,3545.6,5.45872]
[1754270913873,1.52249304,3545.7,3545.6,5.45872]
[1754270914182,3.2078,3545.8,3545.6,5.45872]
[1754270914481,3.2078,3545.8,3545.7,8.39759862]
[1754270914775,20.8319,3546.5,3546.2,3.1136]
[1754270914776,5.71581,3546.3,3546.2,3.1136]
[1754270914981,6.61133617,3546.3,3546.2,4.0084]
[1754270915181,5.71581,3546.3,3546.2,4.0084]
[1754270915383,8.62751,3546.3,3546.2,4.0084]
[1754270915580,8.85576542,3546.3,3546.2,4.0084]
[1754270915781,8.62751,3546.3,3546.2,4.0084]
[1754270916875,8.62751,3546.3,3546.2,4.8947]
[1754270917080,8.62751,3546.3,3546.2,4.0084]
[1754270917587,5.85621,3546.3,3546.2,4.8947]
[1754270917884,6.60141,3546.3,3546.2,4.8947]
[1754270918086,8.62751,3546.3,3546.2,4.8947]
[1754270918284,3.2078,3546.3,3546.2,5.45862]
[1754270919982,8.0636,3546.3,3545.5,3.2078]
[1754270920188,1.9441,3545.6,3545.5,5.70482]